fUST/lending_fUST_20240112
["ID","MTS","AMOUNT","RATE_DAILY","PERIOD"]
[311238946,1704989643706,-245.88461104,0.00013055,2]
[311238947,1704989643727,-521.06936744,0.00013055,2]
[311238948,1704989643748,-13341.9463901,0.00013055,2]
[311238951,1704989660126,155.02325349,0.00011839,2]
[311238957,1704989682124,155.02325349,0.00011747,2]
[311238960,1704989700151,155.02325349,0.00011747,2]
[311238961,1704989718119,155.02325349,0.00011749,2]
[311238962,1704989724333,24900.0,0.00012051,2]
[311238964,1704989742123,155.02325349,0.00011741,2]
[311238968,1704989764134,155.02325349,0.00011741,2]
[311238970,1704989775111,3828.6633715,0.00012046,2]
[311238971,1704989780871,2271.0947862,0.00012046,2]
[311238972,1704989784153,155.02480397,0.00011738,2]
[311238973,1704989802259,155.0294556,0.00011738,2]
[311238974,1704989818284,155.04341216,0.00011738,2]
[311238975,1704989836150,155.04651395,0.00011738,2]
[311238978,1704989854154,155.04651395,0.00011731,2]
[311238979,1704989855442,618.41299531,0.00012936,2]
[311238980,1704989872144,155.03875969,0.0001173,2]
[311238981,1704989888145,155.04031048,0.0001173,2]
[311238982,1704989908155,155.04651395,0.00011724,2]
[311238984,1704989928168,155.04651395,0.00011723,2]
[311238985,1704989946161,155.04651395,0.00011723,2]
[311238987,1704989962158,155.04651395,0.00011721,2]
[311238990,1704989980182,155.04651395,0.0001172,2]
[311238994,1704990138437,154.21250895,0.00012903,2]
[311238995,1704990145676,964.75498104,0.00013,2]
[311238996,1704990155561,4789.41827786,0.00013,2]
[311238997,1704990156657,521.43346448,0.00013,2]
[311238998,1704990161888,6602.15861025,0.00013,2]
[311238999,1704990162190,1587.53319979,0.00013,2]
[311239001,1704990172620,155.0558201,0.00013,2]
[311239002,1704990175593,198.86702102,0.00013,2]
[311239003,1704990179148,1291.19265067,0.00013,2]
[311239004,1704990182428,976.18563318,0.00013,2]
[311239005,1704990184097,36895.86463632,0.00013,2]
[311239006,1704990190038,521.06936744,0.00013,2]
[311239007,1704990191791,24900.0,0.0001204,2]
[311239008,1704990191821,3738.72601468,0.00013,2]
[311239009,1704990194901,2035.15445086,0.00013,2]
[311239011,1704990202451,976.18563318,0.00011701,2]
[311239012,1704990214918,1538.38913344,0.00013,2]
[311239013,1704990218432,984.42014104,0.000117,2]
[311239014,1704990221222,1576.24044161,0.00013,2]
[311239038,1704990235323,795.69280046,0.00013,2]
[311239041,1704990247872,298.96129893,0.00013,2]
[311239042,1704990252991,13694.49776337,0.00013,2]
[311239043,1704990254965,303.01578227,0.00013,2]
[311239044,1704990255113,155.26102042,0.00013,2]
[311239045,1704990258943,239.41298095,0.00013,2]
[311239046,1704990260609,36895.86463632,0.00013,2]
[311239047,1704990261501,310.03505765,0.00013,2]
[311239048,1704990266812,494.73039624,0.00012902,2]
[311239049,1704990266997,1582.95330039,0.00013,2]
[311239050,1704990274627,4655.81961534,0.00013,2]
[311239051,1704990290181,191.04671629,0.00013,2]
[311239056,1704990305127,230.52332349,0.00013,2]
[311239057,1704990308276,197.18219085,0.00013,2]
[311239058,1704990325146,230.48582873,0.00013,2]
[311239059,1704990327582,321.69640398,0.00013,2]
[311239060,1704990330898,860.94215638,0.00013,2]
[311239061,1704990332615,1693.74494191,0.00012999,2]
[311239062,1704990346903,259.72587035,0.00013,2]
[311239063,1704990348473,265.85461325,0.00013,2]
[311239067,1704990408609,155.0,0.00012935,2]
[311239071,1704990442722,-260.63257169,0.00013001,2]
[311239072,1704990442749,-285.81505308,0.00013001,2]
[311239073,1704990442780,-155.0558201,0.00013001,2]
[311239074,1704990442806,-155.0558201,0.00013001,2]
[311239075,1704990442835,-6514.35345844,0.00013001,2]
[311239076,1704990442864,-521.43346448,0.00013001,2]
[311239077,1704990442894,-2107.65381211,0.00013001,2]
[311239082,1704990464781,521.43346448,0.00013,2]
[311239084,1704990476298,7988.52269899,0.00013,2]
[311239085,1704990480756,567.10388234,0.00013,2]
[311239088,1704990490295,5584.06930249,0.00013,2]
[311239089,1704990501615,285.69459012,0.00013,2]
[311239090,1704990502631,260.63257169,0.00013,2]
[311239092,1704990503163,216.74026979,0.00013,2]
[311239093,1704990505964,155.07753877,0.00013,2]
[311239094,1704990507718,6514.35345844,0.000117,2]
[311239095,1704990524039,155.23225688,0.00013,2]
[311239096,1704990525708,6514.35345844,0.000117,2]
[311239099,1704990539714,6514.35345844,0.000117,2]
[311239107,1704990559707,6514.35345844,0.000117,2]
[311239112,1704990566833,3738.72601468,0.00013,2]
[311239117,1704990579703,6514.35345844,0.000117,2]
[311239118,1704990582853,1120.38842615,0.00013,2]
[311239125,1704990599717,6514.35345844,0.000117,2]
[311239128,1704990610774,521.43346448,0.00013,2]
[311239129,1704990611684,260.34948307,0.00013,2]
[311239133,1704990618005,309.98172843,0.00013,2]
[311239134,1704990619856,4920.58000393,0.000117,2]
[311239135,1704990629784,405.0782736,0.00013,2]
[311239182,1704990634473,-2677.92753434,0.00013001,2]
[311239184,1704990634484,-4279.03551871,0.00013001,2]
[311239186,1704990634494,-1585.89399945,0.00013001,2]
[311239188,1704990634504,-226.20309565,0.00013001,2]
[311239190,1704990634514,-1290.01256616,0.00013001,2]
[311239192,1704990634524,-520.55293245,0.00013001,2]
[311239194,1704990634534,-46831.73742559,0.00013001,2]
[311239196,1704990634546,-2299.95,0.00013001,2]
[311239200,1704990634581,-4593.6,0.00013001,2]
[311239202,1704990634593,-74997.93699115,0.00013001,2]
[311239406,1704990639919,-142064.62957142,0.00013001,2]
[311239410,1704990639930,-15883.65187876,0.0001301,2]
[311239412,1704990639940,-947.80013116,0.00013047,2]
[311239414,1704990639950,-19663.58309656,0.0001305,2]
[311239416,1704990639960,-466.69842907,0.00013052,2]
[311239418,1704990639970,-918.0,0.00013052,2]
[311239421,1704990639980,-360.80127126,0.00013054,2]
[311239423,1704990639990,-257.92964888,0.00013055,2]
[311239425,1704990640000,-329.8178604,0.00013154,2]
[311239427,1704990640010,-853.73354791,0.00013154,2]
[311239429,1704990640020,-409.95513465,0.00013154,2]
[311239431,1704990640030,-665.39306004,0.00013155,2]
[311239435,1704990640038,-509.10030575,0.00013258,2]
[311239438,1704990640046,-197.57248973,0.0001326,2]
[311239442,1704990640055,-155.54491002,0.0001326,2]
[311239445,1704990640065,-639.66901573,0.0001326,2]
[311239446,1704990640074,-469.71701685,0.0001326,2]
[311239448,1704990640087,-20836.46606025,0.0001326,2]
[311239450,1704990640097,-2070.35788054,0.0001326,2]
[311239452,1704990640106,-243.27851636,0.0001326,2]
[311239453,1704990640116,-1854.6364776,0.0001326,2]
[311239455,1704990640125,-216.3796237,0.0001326,2]
[311239456,1704990640135,-1053.95765159,0.0001326,2]
[311239457,1704990640144,-169.47827152,0.00013261,2]
[311239458,1704990640153,-155.36864811,0.00013261,2]
[311239459,1704990640162,-323.53882414,0.00013261,2]
[311239461,1704990640172,-155.34159394,0.00013261,2]
[311239463,1704990640181,-160.23214209,0.00013261,2]
[311239465,1704990640191,-1279.729199,0.00013261,2]
[311239466,1704990640200,-178.47960527,0.00013261,2]
[311239468,1704990640210,-808.3238048,0.0001329,2]
[311239470,1704990640219,-5017.46785005,0.0001329,2]
[311239472,1704990640229,-4178.6254779,0.00013699,2]
[311239474,1704990640238,-228.373849,0.00013699,2]
[311239476,1704990640248,-3807.0703734,0.00013699,2]
[311239478,1704990640258,-7945.04739538,0.00014767,2]
[311239479,1704990640267,-546.87419273,0.00015,2]
[311239481,1704990640277,-155.01550155,0.00015,2]
[311239483,1704990640286,-686.6489252,0.00015,2]
[311239485,1704990640296,-1284.2876522,0.00015342,2]
[311239487,1704990640305,-271.76209144,0.00015998,2]
[311239489,1704990640315,-155.14700029,0.00015998,2]
[311239491,1704990640328,-225341.64176231,0.00016,2]
[311239493,1704990640340,-272.00985266,0.000165,2]
[311239495,1704990640350,-872.72571525,0.00017235,2]
[311239497,1704990640360,-494.73039622,0.00017317,2]
[311239499,1704990640372,-246.10686283,0.000178,2]
[311239501,1704990640381,-10503.19627673,0.00017898,2]
[311239503,1704990640390,-1578.97802722,0.00019,2]
[311239505,1704990640400,-170.099936,0.00019178,2]
[311239507,1704990640410,-164.574171,0.00019178,2]
[311239509,1704990640419,-1112.22182837,0.000195,2]
[311239511,1704990640429,-400.61500129,0.000196,2]
[311239513,1704990640438,-324.10626523,0.00019921,2]
[311239515,1704990640447,-156.02542172,0.00019921,2]
[311239516,1704990640456,-309.92276179,0.00019921,2]
[311239518,1704990640466,-304.4646857,0.00019921,2]
[311239520,1704990640475,-587.91032984,0.00019921,2]
[311239522,1704990640486,-1182.03885111,0.00019921,2]
[311239524,1704990640495,-261.8211746,0.00019921,2]
[311239526,1704990640504,-213.21987894,0.00019921,2]
[311239528,1704990640513,-451.65400802,0.00019922,2]
[311239530,1704990640523,-309.90705577,0.00019922,2]
[311239532,1704990640532,-155.089591,0.00019922,2]
[311239534,1704990640541,-226.69168672,0.00019922,2]
[311239536,1704990640550,-266.19065175,0.0002,2]
[311239538,1704990640559,-200.0,0.0002,2]
[311239539,1704990640568,-156.3473812,0.0002,2]
[311239541,1704990640578,-853.72221584,0.0002,2]
[311239543,1704990640592,-1195.27282006,0.0002,2]
[311239545,1704990640601,-677.0708176,0.0002,2]
[311239547,1704990640610,-155.9942477,0.0002,2]
[311239549,1704990640619,-155.17062563,0.0002,2]
[311239551,1704990640628,-187.32564885,0.0002,2]
[311239552,1704990640638,-568.14998178,0.0002,2]
[311239554,1704990640647,-228.373849,0.00020548,2]
[311239556,1704990640656,-327.96137647,0.00021,2]
[311239557,1704990640666,-1822.05331204,0.00021,2]
[311239559,1704990640676,-494.73039622,0.00021731,2]
[311239561,1704990640686,-166.666666,0.00021918,2]
[311239563,1704990640695,-783.53547067,0.00022,2]
[311239565,1704990640705,-4918.87947459,0.00022,2]
[311239567,1704990640713,-296.02443686,0.00022,2]
[311239569,1704990640723,-2044.95108617,0.00022,2]
[311239570,1704990640732,-166.666666,0.00022431,2]
[311239572,1704990640741,-166.666666,0.00022944,2]
[311239574,1704990640750,-9923.17263833,0.00023,2]
[311239585,1704990640867,-2093.45221107,0.00023,2]
[311239587,1704990640877,-166.666666,0.00023456,2]
[311239589,1704990640887,-166.666666,0.00023969,2]
[311239591,1704990640897,-4005.39956635,0.00024,2]
[311239593,1704990640906,-617.37520373,0.00024,2]
[311239595,1704990640916,-166.666666,0.00024482,2]
[311239597,1704990640926,-687.75702701,0.000247,2]
[311239599,1704990640935,-4711.91259146,0.00025,2]
[311239601,1704990640945,-3000.0,0.00025,2]
[311239603,1704990640955,-677.25499859,0.00025,2]
[311239605,1704990640965,-525.99300196,0.00026,2]
[311239607,1704990640975,-494.73039622,0.00026146,2]
[311239609,1704990640985,-3314.01740452,0.00027,2]
[311239611,1704990640995,-4440.0828328,0.000273,4]
[311239613,1704990641004,-501.00894022,0.000274,2]
[311239614,1704990641015,-483.61502924,0.00028,2]
[311239616,1704990641025,-305.07101819,0.00028,2]
[311239618,1704990641035,-9297.49365579,0.00028,2]
[311239621,1704990641047,-197.45461347,0.00028601,3]
[311239622,1704990641057,-10926.94511764,0.00028608,3]
[311239624,1704990641066,-588.31068395,0.00028608,3]
[311239626,1704990641076,-172.39783441,0.00028608,3]
[311239628,1704990641093,-151.06646925,0.00028957,2]
[311239630,1704990641104,-5807.00559693,0.00029,2]
[311239632,1704990641114,-155.01550155,0.00029,2]
[311239634,1704990641125,-298.59057055,0.00029,2]
[311239636,1704990641135,-270.6679941,0.00029132,2]
[311239638,1704990641146,-385.162077,0.00029311,2]
[311239640,1704990641155,-281.288031,0.00029311,2]
[311239642,1704990641166,-164.552346,0.00029311,2]
[311239644,1704990641177,-174.594481,0.00029311,2]
[311239645,1704990641188,-199.881506,0.00029311,2]
[311239647,1704990641200,-192.337854,0.00029311,2]
[311239649,1704990641212,-174.594481,0.00029311,2]
[311239651,1704990641223,-208.561686,0.00029311,2]
[311239653,1704990641233,-385.162077,0.00029677,2]
[311239655,1704990641243,-281.288031,0.00029677,2]
[311239657,1704990641254,-174.594481,0.00029677,2]
[311239659,1704990641264,-174.594481,0.00029677,2]
[311239661,1704990641274,-155.9903167,0.00029684,2]
[311239663,1704990641284,-709.42768812,0.0003,4]
[311239664,1704990641293,-274.65236064,0.0003,7]
[311239666,1704990641303,-155.01550155,0.0003,2]
[311239668,1704990641313,-10528.61647802,0.0003,4]
[311239670,1704990641322,-463.46661998,0.0003,4]
[311239672,1704990641336,-6975.26133049,0.0003,4]
[311239674,1704990641346,-1960.2928702,0.0003,15]
[311239676,1704990641355,-282.67247261,0.0003,3]
[311239678,1704990641365,-2151.8403773,0.0003,4]
[311239680,1704990641374,-1212.47282924,0.0003,2]
[311239681,1704990641383,-31920.09410148,0.0003,4]
[311239683,1704990641392,-155.18046676,0.0003,4]
[311239685,1704990641402,-686.8051383,0.0003,4]
[311239686,1704990641412,-198.0,0.0003,2]
[311239687,1704990641421,-1212.71544269,0.0003,2]
[311239688,1704990641431,-168.95982225,0.00030036,5]
[311239689,1704990641442,-168.95982225,0.00030036,5]
[311239690,1704990641452,-168.95982225,0.00030036,5]
[311239691,1704990641462,-168.95982225,0.00030036,5]
[311239692,1704990641472,-168.95982225,0.00030036,5]
[311239693,1704990641483,-168.95982225,0.00030036,5]
[311239694,1704990641495,-168.95982225,0.00030036,5]
[311239695,1704990641506,-168.95982225,0.00030036,5]
[311239696,1704990641517,-168.95982225,0.00030036,5]
[311239697,1704990641528,-168.95982225,0.00030036,5]
[311239698,1704990641539,-168.95982225,0.00030036,5]
[311239699,1704990641549,-168.95982225,0.00030036,5]
[311239700,1704990641560,-168.95982225,0.00030036,5]
[311239701,1704990641571,-168.95982225,0.00030036,5]
[311239702,1704990641581,-168.95982225,0.00030036,5]
[311239703,1704990641595,-168.95982225,0.00030036,5]
[311239704,1704990641605,-168.95982225,0.00030036,5]
[311239705,1704990641614,-168.95982225,0.00030036,5]
[311239706,1704990641623,-168.95982225,0.00030036,5]
[311239708,1704990641632,-168.95,0.00030036,5]
[311239709,1704990641642,-675.83928901,0.00030036,5]
[311239711,1704990641651,-675.83928901,0.00030036,5]
[311239713,1704990641661,-675.83928901,0.00030036,5]
[311239714,1704990641671,-675.83928901,0.00030036,5]
[311239716,1704990641680,-675.83928901,0.00030036,5]
[311239718,1704990641689,-675.83928901,0.00030036,5]
[311239720,1704990641699,-675.83928901,0.00030036,5]
[311239722,1704990641708,-675.83928901,0.00030036,5]
[311239724,1704990641718,-675.83928901,0.00030036,5]
[311239726,1704990641728,-675.83928901,0.00030036,5]
[311239728,1704990641737,-675.83928901,0.00030036,5]
[311239730,1704990641746,-675.83928901,0.00030036,5]
[311239732,1704990641756,-675.83928901,0.00030036,5]
[311239734,1704990641765,-675.83928901,0.00030036,5]
[311239736,1704990641780,-675.83928901,0.00030036,5]
[311239738,1704990641795,-675.83928901,0.00030036,5]
[311239740,1704990641805,-675.83928901,0.00030036,5]
[311239742,1704990641814,-38379.93475574,0.00030036,3]
[311239745,1704990641826,-198.16934034,0.00030036,5]
[311239746,1704990641840,-198.16934034,0.00030036,5]
[311239748,1704990641849,-385.162077,0.00030043,2]
[311239750,1704990641858,-281.288031,0.00030043,2]
[311239752,1704990641868,-174.594481,0.00030043,2]
[311239754,1704990641878,-174.594481,0.00030043,2]
[311239756,1704990641887,-199.881506,0.00030044,2]
[311239758,1704990641897,-20841.25599026,0.00030135,2]
[311239760,1704990641907,-500.0,0.00030136,2]
[311239762,1704990641916,-500.0,0.00030136,2]
[311239764,1704990641926,-500.0,0.00030136,2]
[311239766,1704990641936,-500.0,0.00030136,2]
[311239768,1704990641945,-500.0,0.00030136,2]
[311239770,1704990641956,-500.0,0.00030136,2]
[311239772,1704990641965,-502.011769,0.00030136,2]
[311239774,1704990641975,-500.0,0.00030136,2]
[311239776,1704990641985,-500.0,0.00030136,2]
[311239778,1704990641995,-720.89,0.00030136,2]
[311239780,1704990642005,-500.0,0.00030136,2]
[311239782,1704990642015,-500.9535878,0.00030136,2]
[311239784,1704990642026,-500.0,0.00030136,2]
[311239786,1704990642036,-500.0,0.00030136,2]
[311239788,1704990642046,-594.76805938,0.00030136,2]
[311239790,1704990642056,-500.0,0.00030136,2]
[311239792,1704990642066,-502.28052706,0.00030136,2]
[311239794,1704990642076,-500.0,0.00030136,2]
[311239796,1704990642094,-500.0,0.00030136,2]
[311239798,1704990642103,-500.0,0.00030136,2]
[311239800,1704990642113,-500.0,0.00030136,2]
[311239802,1704990642123,-500.0,0.00030136,2]
[311239804,1704990642133,-500.0,0.00030136,2]
[311239805,1704990642142,-500.0,0.00030136,2]
[311239808,1704990642155,-500.0,0.00030136,2]
[311239810,1704990642164,-500.0,0.00030136,2]
[311239812,1704990642173,-500.0,0.00030136,2]
[311239813,1704990642183,-501.48834983,0.00030136,2]
[311239815,1704990642192,-500.0,0.00030136,2]
[311239817,1704990642202,-500.0,0.00030136,2]
[311239819,1704990642211,-500.0,0.00030136,2]
[311239821,1704990642221,-500.0,0.00030136,2]
[311239823,1704990642231,-500.0,0.00030136,2]
[311239826,1704990642240,-510.53781387,0.00030136,2]
[311239829,1704990642249,-170.19796657,0.00030136,2]
[311239831,1704990642258,-500.0,0.00030136,2]
[311239833,1704990642267,-418.33957218,0.00030136,2]
[311239835,1704990642277,-500.0,0.00030136,2]
[311239837,1704990642286,-642.73342,0.00030136,2]
[311239840,1704990642296,-500.0,0.00030136,2]
[311239843,1704990642305,-500.0,0.00030136,2]
[311239844,1704990642314,-500.0,0.00030136,2]
[311239847,1704990642328,-500.0,0.00030136,2]
[311239850,1704990642344,-500.0,0.00030136,2]
[311239853,1704990642353,-500.0,0.00030136,2]
[311239856,1704990642363,-500.0,0.00030136,2]
[311239859,1704990642374,-500.0,0.00030136,2]
[311239862,1704990642384,-500.0,0.00030136,2]
[311239865,1704990642393,-263.55370066,0.00030136,2]
[311239868,1704990642406,-500.86129898,0.00030136,2]
[311239871,1704990642416,-500.0,0.00030136,2]
[311239874,1704990642425,-957.69,0.00030136,2]
[311239878,1704990642434,-500.0,0.00030136,2]
[311239882,1704990642443,-500.0,0.00030136,2]
[311239886,1704990642452,-500.0,0.00030136,2]
[311239889,1704990642461,-500.0,0.00030136,2]
[311239894,1704990642470,-500.0,0.00030136,2]
[311239899,1704990642480,-500.0,0.00030136,2]
[311239903,1704990642489,-500.0,0.00030136,2]
[311239907,1704990642498,-500.0,0.00030136,2]
[311239912,1704990642508,-500.0,0.00030136,2]
[311239915,1704990642517,-500.0,0.00030136,2]
[311239918,1704990642526,-500.0,0.00030136,2]
[311239920,1704990642535,-500.0,0.00030136,2]
[311239924,1704990642544,-500.0,0.00030136,2]
[311239928,1704990642553,-540.55020902,0.00030136,2]
[311239932,1704990642563,-500.0,0.00030136,2]
[311239935,1704990642572,-500.0,0.00030136,2]
[311239939,1704990642580,-345.71155924,0.00030136,2]
[311239943,1704990642594,-500.0,0.00030136,2]
[311239947,1704990642604,-500.0,0.00030136,2]
[311239950,1704990642614,-519.38203127,0.00030136,2]
[311239954,1704990642623,-500.0,0.00030136,2]
[311239958,1704990642633,-500.0,0.00030136,2]
[311239962,1704990642642,-500.0,0.00030136,2]
[311239965,1704990642652,-500.0,0.00030136,2]
[311239969,1704990642661,-500.0,0.00030136,2]
[311239971,1704990642670,-500.0,0.00030136,2]
[311239973,1704990642679,-500.0,0.00030136,2]
[311239975,1704990642688,-201.73518869,0.00030136,2]
[311239977,1704990642697,-500.0,0.00030136,2]
[311239979,1704990642706,-500.0,0.00030136,2]
[311239981,1704990642715,-500.0,0.00030136,2]
[311239983,1704990642724,-500.0,0.00030136,2]
[311239985,1704990642733,-1000.0,0.00030136,2]
[311239987,1704990642742,-500.0,0.00030136,2]
[311239989,1704990642751,-500.0,0.00030136,2]
[311239991,1704990642760,-500.0,0.00030136,2]
[311239993,1704990642768,-659.86,0.00030136,2]
[311239995,1704990642777,-500.0,0.00030136,2]
[311239997,1704990642786,-500.0,0.00030136,2]
[311239999,1704990642795,-512.16289169,0.00030136,2]
[311240001,1704990642804,-548.17159399,0.00030136,2]
[311240003,1704990642813,-500.0,0.00030136,2]
[311240005,1704990642823,-518.67904986,0.00030136,2]
[311240007,1704990642837,-500.0,0.00030136,2]
[311240009,1704990642847,-500.0,0.00030136,2]
[311240011,1704990642856,-500.0,0.00030136,2]
[311240013,1704990642866,-500.0,0.00030136,2]
[311240014,1704990642875,-10000.0,0.00030136,10]
[311240017,1704990642885,-500.0,0.00030136,2]
[311240018,1704990642895,-500.0,0.00030136,2]
[311240020,1704990642905,-500.0,0.00030136,2]
[311240022,1704990642915,-500.0,0.00030136,2]
[311240024,1704990642925,-500.0,0.00030136,2]
[311240026,1704990642936,-500.0,0.00030136,2]
[311240028,1704990642946,-503.17641592,0.00030136,2]
[311240030,1704990642956,-500.0,0.00030136,2]
[311240033,1704990642966,-501.82843532,0.00030136,2]
[311240035,1704990642975,-500.0,0.00030136,2]
[311240036,1704990642985,-501.07299609,0.00030136,2]
[311240039,1704990642994,-500.0,0.00030136,2]
[311240041,1704990643003,-500.0,0.00030136,2]
[311240043,1704990643013,-657.17,0.00030136,2]
[311240045,1704990643023,-500.0,0.00030136,2]
[311240047,1704990643032,-500.0,0.00030136,2]
[311240048,1704990643042,-500.0,0.00030136,2]
[311240051,1704990643051,-500.0,0.00030136,2]
[311240053,1704990643061,-500.0,0.00030136,2]
[311240055,1704990643070,-186.76567446,0.00030136,2]
[311240057,1704990643079,-500.0,0.00030136,2]
[311240059,1704990643093,-500.0,0.00030136,2]
[311240060,1704990643102,-500.0,0.00030136,2]
[311240063,1704990643111,-341.22,0.00030136,2]
[311240066,1704990643120,-500.0,0.00030136,2]
[311240069,1704990643130,-500.0,0.00030136,2]
[311240071,1704990643140,-500.0,0.00030136,2]
[311240075,1704990643150,-500.0,0.00030136,2]
[311240076,1704990643159,-500.0,0.00030136,2]
[311240078,1704990643168,-500.0,0.00030136,2]
[311240081,1704990643178,-502.0635084,0.00030136,2]
[311240082,1704990643188,-500.0,0.00030136,2]
[311240085,1704990643197,-1524.5,0.00030136,2]
[311240086,1704990643206,-500.0,0.00030136,2]
[311240098,1704990643302,-500.0,0.00030136,2]
[311240100,1704990643312,-160.73162302,0.00030136,2]
[311240102,1704990643323,-500.0,0.00030136,2]
[311240104,1704990643337,-388.98554626,0.00030136,2]
[311240106,1704990643347,-500.0,0.00030136,2]
[311240108,1704990643356,-500.0,0.00030136,2]
[311240110,1704990643365,-500.0,0.00030136,2]
[311240112,1704990643374,-158.10850089,0.00030136,2]
[311240114,1704990643383,-500.0,0.00030136,2]
[311240116,1704990643392,-500.0,0.00030136,2]
[311240118,1704990643401,-500.0,0.00030136,2]
[311240120,1704990643410,-641.14117884,0.00030136,2]
[311240122,1704990643419,-500.0,0.00030136,2]
[311240124,1704990643428,-500.0,0.00030136,2]
[311240126,1704990643437,-500.0,0.00030136,2]
[311240128,1704990643446,-215.02371983,0.00030136,2]
[311240130,1704990643455,-500.0,0.00030136,2]
[311240131,1704990643465,-500.0,0.00030136,2]
[311240133,1704990643474,-500.0,0.00030136,2]
[311240135,1704990643483,-500.0,0.00030136,2]
[311240137,1704990643492,-197.59577216,0.00030136,2]
[311240139,1704990643501,-500.0,0.00030136,2]
[311240141,1704990643510,-500.0,0.00030136,2]
[311240143,1704990643519,-500.0,0.00030136,2]
[311240145,1704990643528,-500.0,0.00030136,2]
[311240147,1704990643536,-500.0,0.00030136,2]
[311240149,1704990643545,-1011.98987962,0.00030136,5]
[311240151,1704990643555,-500.0,0.00030136,2]
[311240153,1704990643564,-500.0,0.00030136,2]
[311240155,1704990643577,-500.0,0.00030136,2]
[311240157,1704990643593,-500.0,0.00030136,2]
[311240159,1704990643602,-500.0,0.00030136,2]
[311240161,1704990643612,-500.0,0.00030136,2]
[311240163,1704990643621,-500.0,0.00030136,2]
[311240165,1704990643631,-500.0,0.00030136,2]
[311240167,1704990643640,-230.84334159,0.00030136,2]
[311240169,1704990643650,-545.46472902,0.00030136,2]
[311240172,1704990643659,-500.0,0.00030136,2]
[311240174,1704990643669,-500.0,0.00030136,2]
[311240175,1704990643678,-500.0,0.00030136,2]
[311240177,1704990643687,-500.0,0.00030136,2]
[311240180,1704990643696,-500.0,0.00030136,2]
[311240182,1704990643705,-506.61528026,0.00030136,2]
[311240184,1704990643715,-500.0,0.00030136,2]
[311240185,1704990643724,-500.0,0.00030136,2]
[311240188,1704990643734,-155.06202481,0.00030136,3]
[311240189,1704990643742,-623.36,0.00030136,2]
[311240191,1704990643752,-500.0,0.00030136,2]
[311240194,1704990643761,-500.0,0.00030136,2]
[311240196,1704990643771,-500.0,0.00030136,2]
[311240198,1704990643780,-500.0,0.00030136,2]
[311240199,1704990643790,-500.0,0.00030136,2]
[311240201,1704990643799,-500.0,0.00030136,2]
[311240204,1704990643809,-500.0,0.00030136,2]
[311240206,1704990643819,-500.0,0.00030136,2]
[311240207,1704990643828,-500.0,0.00030136,2]
[311240209,1704990643842,-505.49538568,0.00030136,2]
[311240211,1704990643851,-500.0,0.00030136,2]
[311240213,1704990643861,-500.0,0.00030136,2]
[311240215,1704990643874,-500.0,0.00030136,2]
[311240217,1704990643883,-500.0,0.00030136,2]
[311240219,1704990643893,-500.0,0.00030136,2]
[311240222,1704990643903,-503.18365884,0.00030136,2]
[311240223,1704990643912,-500.0,0.00030136,2]
[311240225,1704990643921,-689.86,0.00030136,2]
[311240227,1704990643931,-507.36864681,0.00030136,2]
[311240229,1704990643940,-500.0,0.00030136,2]
[311240231,1704990643950,-500.0,0.00030136,2]
[311240233,1704990643959,-503.53888354,0.00030136,2]
[311240234,1704990643968,-500.0,0.00030136,2]
[311240235,1704990643978,-780.28,0.00030136,2]
[311240236,1704990643987,-500.0,0.00030136,2]
[311240237,1704990643997,-500.0,0.00030136,2]
[311240239,1704990644006,-500.0,0.00030136,2]